Cogmind - Beta 13 @@@ ROGUE MODE // 2024.04.24 @ 13:32:48 Player: opdo Result: Core destroyed Performance ------------- Evolutions (0) 0 Regions Visited (2) 400 Robots Destroyed (10) 50 Value Destroyed (97) 97 Prototype IDs (0) 0 Alien Tech Used (0) 0 Bonus (0) 0 TOTAL SCORE: 547 Bonus ------- None Cogmind --------- Core Integrity 0/250 Matter 110/300 Energy 100/100 System Corruption 48% Temperature Cool (0) Movement Core (200) Ox3 Location -10/Mines Parts ------- > --- POWER (1) -------- Light Ion Engine > --- PROPULSION (2) --- Aluminum Leg Aluminum Leg > --- UTILITY (2) ------ Small Storage Unit Improved Terrain Scanner > --- WEAPON (2) ------- Assault Rifle Light Assault Rifle > --- INVENTORY (8) ---- Ion Engine Wheel Wheel Wheel Hover Unit Hover Unit Small Laser Light Assault Rifle Peak State ------------ > --- POWER ------------ Light Ion Engine > --- PROPULSION ------- Aluminum Leg Aluminum Leg > --- UTILITY ---------- Small Storage Unit Improved Terrain Scanner > --- WEAPON ----------- Assault Rifle Light Assault Rifle > --- INVENTORY -------- Ion Engine Wheel Wheel Small Laser [Rating: 9] Favorites ----------- Power Light Ion Engine Engine Light Ion Engine Propulsion Aluminum Leg Leg Aluminum Leg Utility Small Storage Unit Device Improved Terrain Scanner Storage Small Storage Unit Weapon Light Assault Rifle Ballistic Gun Light Assault Rifle Build | -11 -10 -10 ------- Run | Yrd Mat Min Slots Evolved . | . . . Power . | . . . Propulsion . | . . . Utility . | . . . Weapon . | . . . Parts Attached 7 | 7 . . Power 1 | 1 . . Engine 1 | 1 . . Core . | . . . Reactor . | . . . Propulsion 2 | 2 . . Treads . | . . . Leg 2 | 2 . . Wheel . | . . . Hover . | . . . Flight . | . . . Utility 2 | 2 . . Device 1 | 1 . . Storage 1 | 1 . . Processor . | . . . Hackware . | . . . Protection . | . . . Artifact . | . . . Weapon 2 | 2 . . Energy Gun . | . . . Energy Cannon . | . . . Ballistic Gun 2 | 2 . . Ballistic Cannon . | . . . Launcher . | . . . Special Weapon . | . . . Impact Weapon . | . . . Slashing Weapon . | . . . Piercing Weapon . | . . . Special Melee Weapon . | . . . Unidentified Prototypes . | . . . Parts Lost . | . . . Power . | . . . Propulsion . | . . . Utility . | . . . Weapon . | . . . Highest Loss Streak . | . . . To Critical Strikes . | . . . Average Slot Usage (%) 100 | . 100 100 Engine 14 | . 14 14 Leg 28 | . 28 28 Device 14 | . 14 14 Storage 14 | . 14 14 Ballistic Gun 28 | . 28 28 Naked Turns . | . . . Heaviest Build 12 | 12 12 12 Greatest Support 20 | 20 20 20 Greatest Overweight (x) 2 | 2 . . Average Overweight (x) . | . . . Largest Inventory Capacity 8 | 8 8 8 Average Capacity 7 | 7 8 8 Most Carried 8 | 5 7 8 Average Carried 6 | 2 6 7 Final Capacity 8 | 8 8 8 Final Carried 8 | 5 7 8 Class Distribution -------------------- 100% | Mutant Dominant Class ---------------- Mutant | -10/Materials Mutant | -10/Mines Resources | -11 -10 -10 ----------- Run | Yrd Mat Min Matter Collected 218 | 149 13 56 Remotely . | . . . Salvage Created 163 | 65 13 85 Parts 17 | 6 2 9 Haulers Intercepted . | . . . Recyclers Shooed 1 | . . 1 Parts Field Recycled . | . . . Retrieved Matter . | . . . Parts Self-Destructed . | . . . Prevented . | . . . Kills | -11 -10 -10 ------- Run | Yrd Mat Min Combat Hostiles Destroyed 6 | . . 6 Guns 6 | . . 6 Classes Destroyed 3 | 1 1 1 Tunneler 3 | 3 . . Operator 1 | . 1 . Swarmer 6 | . . 6 Best Kill Streak 6 | 3 1 6 Combat Bots Only 6 | . . 6 Max Kills in Single Turn 1 | 1 1 1 Gunslinging . | . . . Exploded . | . . . Melee . | . . . Uniques/NPCs Destroyed . | . . . Combat | -11 -10 -10 -------- Run | Yrd Mat Min Hostile Shots Fired 28 | . . 28 Missed 4 | . . 4 Damage Taken 553 | . . 553 Core 260 | . . 260 Absorbed by Shields . | . . . Core Remaining (%) 100 | 100 . . Volleys Fired 30 | 5 3 22 Largest 2 | 2 2 2 Hottest 40 | 40 40 40 Shots Fired 57 | 10 6 41 Gun 57 | 10 6 41 Cannon . | . . . Launcher . | . . . Special . | . . . Kinetic 57 | 10 6 41 Thermal . | . . . Explosive . | . . . Electromagnetic . | . . . Robot Hit Streak 7 | 4 2 7 Robot Miss Streak 4 | 1 2 4 Penetration Max . | . . . Secondary Targets 1 | . . 1 Max Gunslinging Chain 1 | . . 1 Shots Hit Robots 26 | 7 3 16 Core Hits 15 | 6 2 7 Critical Kills . | . . . Critical Parts Destroyed 1 | . 1 . Critical Strikes 1 | . 1 . Destroy 1 | . 1 . Melee Attacks . | . . . Impact . | . . . Slashing . | . . . Piercing . | . . . Sneak Attacks . | . . . Combat Hostiles . | . . . Follow-up Attacks . | . . . Damage Inflicted 417 | 65 26 326 Guns 277 | 65 26 186 Cannons . | . . . Explosions . | . . . Melee . | . . . Ramming 140 | . . 140 Kinetic 277 | 65 26 186 Thermal . | . . . Explosive . | . . . Electromagnetic . | . . . Impact . | . . . Slashing . | . . . Piercing . | . . . Highest Corruption 48 | . 1 48 Average Corruption 7 | . 1 8 Corruption Purged . | . . . Corruption Blocked . | . . . Effects 7 | . . 7 Matter Fused 4 | . . 4 Data Loss (minor) 2 | . . 2 Data Loss (major) 1 | . . 1 Overload Shots . | . . . Overflow Damage . | . . . Projectiles . | . . . Explosions . | . . . Melee . | . . . Knockbacks . | . . . Impact . | . . . Kinetic . | . . . Secondary . | . . . Self-Inflicted Damage 140 | . . 140 Shots . | . . . Rammed . | . . . Targets Rammed 1 | . . 1 Kicked 1 | . . 1 Crushed . | . . . Highest Temperature . | . . . Average Temperature . | . . . Received Heat Transfer . | . . . Siege Activations . | . . . Robots Corrupted . | . . . Combat Hostiles . | . . . Parts Fried . | . . . Impact Corruptions . | . . . Robots Melted . | . . . Combat Hostiles . | . . . Parts Melted . | . . . Heat Transferred . | . . . Parts Sabotaged . | . . . Parts Stolen . | . . . Parts Stripped . | . . . Power Chain Reactions . | . . . Alert | -11 -10 -10 ------- Run | Yrd Mat Min Peak Influence 164 | 15 64 164 Initial 24 | . 9 24 Average 80 | 3 35 107 Maximum Alert Level . | . . . Low Security (%) 100 | 100 100 100 Level 1 . | . . . Level 2 . | . . . Level 3 . | . . . Level 4 . | . . . Level 5 . | . . . High Security . | . . . Max Security . | . . . Squads Dispatched 1 | . 1 . Investigation . | . . . Extermination . | . . . Reinforcement 1 | . 1 . Assault . | . . . Garrison . | . . . Intercept . | . . . Searches Triggered . | . . . Construction Impeded . | . . . Haulers Reinforced . | . . . Active Scanning Responses . | . . . Cargo Convoy Interrupts . | . . . Stealth | -11 -10 -10 --------- Run | Yrd Mat Min Distress Signals 1 | . 1 . Communications Jammed . | . . . Distress Signals . | . . . Times Spotted 8 | . 2 6 Peak Tracking Total 3 | . 3 3 Tactical Retreats 1 | . 1 . Traps | -11 -10 -10 ------- Run | Yrd Mat Min Traps Triggered 1 | . 1 . Indirectly . | . . . Trap Hack Attempts . | . . . Triggered . | . . . Disarmed . | . . . Reprogrammed . | . . . Reused . | . . . Traps Extracted . | . . . Installed . | . . . Triggered . | . . . Machines | -11 -10 -10 ---------- Run | Yrd Mat Min Machines Disabled . | . . . Max in Single Turn . | . . . Machines Repaired . | . . . Machines Dismantled . | . . . Machines Sabotaged . | . . . Overloaded Fab Kills . | . . . Hacking | -11 -10 -10 --------- Run | Yrd Mat Min Machines Accessed 2 | . 2 . Terminals 2 | . 2 . Fabricators . | . . . Repair Stations . | . . . Recycling Units . | . . . Scanalyzers . | . . . Garrison Access . | . . . Total Hacks 3 | . 3 . Successful 1 | . 1 . Failed 2 | . 2 . Catastrophic 2 | . 2 . Database Lockouts . | . . . Manual 3 | . 3 . Terminals 3 | . 3 . Fabricators . | . . . Repair Stations . | . . . Recycling Units . | . . . Scanalyzers . | . . . Garrison Access . | . . . Terminal Hacks . | . . . Fabricator Hacks . | . . . Repair Station Hacks . | . . . Recycling Unit Hacks . | . . . Scanalyzer . | . . . Garrison Access Hacks . | . . . Unauthorized Hacks 1 | . 1 . Terminals 1 | . 1 . Botnet 1 | . 1 . Fabricators . | . . . Repair Stations . | . . . Recycling Units . | . . . Scanalyzers . | . . . Garrison Access . | . . . Data Cores Recovered . | . . . Used . | . . . Hacking Detections 2 | . 2 . Full Trace Events . | . . . Feedback Events . | . . . Feedback Blocked . | . . . Robot Schematics Acquired . | . . . Robots Built . | . . . Authchips . | . . . Time . | . . . Total Robot Build Rating . | . . . Part Schematics Acquired . | . . . Parts Built . | . . . Authchips . | . . . Time . | . . . Total Part Build Rating . | . . . Parts Repaired . | . . . Time . | . . . Parts Recycled . | . . . Recycled Matter . | . . . Retrieved Matter . | . . . Retrieved Components . | . . . Parts Scanalyzed . | . . . Part Schematics Acquired . | . . . Parts Damaged . | . . . Bothacking | -11 -10 -10 ------------ Run | Yrd Mat Min Used RIF Installer . | . . . Robots Hacked . | . . . Non-combat . | . . . Combat . | . . . Robot Hacks Applied . | . . . Relay Couplers Released . | . . . Fabnet Peak Effective % . | . . . Robots Rewired . | . . . Allies Hacked . | . . . Hacks Repelled . | . . . Allies | -11 -10 -10 -------- Run | Yrd Mat Min Total Allies . | . . . Largest Group . | . . . Highest-Rated Group . | . . . Highest-Rated Ally . | . . . Total Orders . | . . . Ally Attacks . | . . . Total Damage . | . . . Kills . | . . . Allies Corrupted . | . . . Allies Melted . | . . . Intel | -11 -10 -10 ------- Run | Yrd Mat Min Robot Analysis Total . | . . . Derelict Logs Recovered . | . . . Drone Launches . | . . . Drone Recoveries . | . . . Exploration | -11 -10 -10 ------------- Run | Yrd Mat Min Turns Passed 581 | 76 108 397 Spaces Moved 304 | 41 82 181 Core 7 | 7 . . Treads . | . . . Legs 297 | 34 82 181 Wheels . | . . . Hover . | . . . Flight . | . . . Fastest Speed 50 | 50 120 120 Average Speed 119 | 115 120 120 Slowest Speed 150 | 150 120 120 Overloaded Moves . | . . . Propulsion Burnouts . | . . . Robots Hopped . | . . . Cave-ins Triggered . | . . . Exploration Rate (%) 22 | 4 18 44 Regions Visited 2 Branch Regions 1 Pre-discovered Areas . | . . . Known Exits Taken . | . . . Unknown Exits Taken 2 | 1 1 . Scrap Searched . | . . . Spaces Dug . | . . . Terrain Destroyed . | . . . Melee . | . . . Projectile . | . . . AOE . | . . . Terrain Rammed 62 | . . 62 Walls Destroyed . | . . . Machines Disabled . | . . . Actions | -11 -10 -10 --------- Run | Yrd Mat Min Total 413 | 57 86 270 Wait 2 | . . 2 Move 302 | 40 81 181 Hop . | . . . Pick Up 9 | 5 2 2 Fast Attach 7 | 7 . . Attach . | . . . Detach . | . . . Swap . | . . . Drop 1 | . . 1 Fire 30 | 5 3 22 Melee . | . . . Ram 61 | . . 61 Kick 1 | . . 1 Crush . | . . . Escape Stasis . | . . . Rewire . | . . . Trap . | . . . Miscellaneous . | . . . Route ------- -11/Scrapyard -10/Materials -10/Mines History --------- Turn | Location | Event 23 | -11/Scrapyard | Discovered new exit (range 15) 77 | -11/Scrapyard | Entered Materials 165 | -10/Materials | Discovered new exit (range 16) 185 | -10/Materials | Entered Mines 311 | -10/Mines | Build established: Mutant 441 | -10/Mines | Excavation squad dispatched 441 | -10/Mines | A large section of the Mines collapsed 471 | -10/Mines | System corruption reached 10% 527 | -10/Mines | Core integrity fell below 50% 535 | -10/Mines | System corruption reached 30% 569 | -10/Mines | Core integrity fell below 20% 582 | -10/Mines | Core destroyed Last Messages --------------- 00566_ Slammed into Earth. 00566_ Destabilizing: Core damaged (-7). 00568_ Slammed into Earth. 00568_ Destabilizing: Core damaged (-10). 00570_ Slammed into Earth. 00570_ Destabilizing: Core damaged (-7). 00572_ Slammed into Earth. 00572_ Destabilizing: System corrupted (+2). 00572_ Destabilizing: Core damaged (-2). 00574_ Slammed into Earth. 00574_ Destabilizing: System corrupted (+1). 00574_ Destabilizing: System corrupted (+2). 00576_ Slammed into Earth. 00576_ Destabilizing: Core damaged (-12). 00578_ System corrupted: Substantial component data lost. 00578_ Slammed into Earth. 00578_ Destabilizing: Core damaged (-5). 00580_ Slammed into Earth. 00582_ Destabilizing: Core damaged (-12). Map ----- +----------------------------------------------------+ | | | | | | | | | | | ????????????????????????????????????????????? | | ??????????????????????##????????????????????? | | ????????????????????????????????????????????? | | ?????????????#????????#?????????????????????? | | ????????????????????????????????????????????? | | ????????????????????????????????????????????? | | ????????????????????????????????????????????? | | ???????????????#???????????????????#????????? | | ?????????????????????##??#??????????????????? | | ?????????????????????# ###??????????????????? | | ??????????????????????# #??????????????????? | | ?????????????#????????# #??????????????????? | | ??????????????##?#????# #??????#???????????? | | ??????????????#???#??## #??????#???????????? | | ???????##?#?????????## ##?????????????????? | | ??????????????????### #?#???????????????? | | ??????#??????#???## #?????????????????? | | ?????###??????#### # ##?????????????????? | | ?????# #??##### ### ###??????????????????? | | ?????# ### # ###?????????#????#?????? | | ?????# #@##??????#??????????????? | | ?????# g ##??###????#????????????? | | ?????# t##?# #?????????????????? | | ??????# ## #####?????????????? | | ??????## t ??????????? | | ???????#### #?????????????????? | | ??????????## ##?????????????????? | | ???????????# ##??????????????????? | | ???????????# #???????????????????? | | #????#???#?## #???#??? ???????????? | | ???????????### ## ##???????????????#???? | | ?#??#??????#?# ### ##????????????????????? | | ??#########??# #?## ##?????????????????????? | | ???# #??# #?### ##???#?????????????????? | | ???# """ #??# #??## ##??###???????#???????? | | ???# """ #### #???# ### ##????? #???????? | | ???# """ % #??### #????? ###?????? | | ???# #### #????# ##???? ##????? | | ???#### ###### #????## ##???## #####? | | ????### #?#??#### ###?## #? | | ??### ########?????#?# ##### ? | | ???# ###???????#????# #???? | | ???#[ * #####??????#?# ##??? ??????? | | ???# ####??#?#?### # ^ ????? | | ???## #??#????#??## ### # ^ ##???? | +----------------------------------------------------+ Best States ------------- Heat Dissipation 25 Energy Generation 10 Energy Capacity 125 Matter Stores 165 Matter Capacity 300 Sight Range 16 Terrain Scan Range 16 Terrain Scan Density 10 Evasion (%) 55 Item Schematics ----------------- None Robot Schematics ------------------ None Fabricated ------------ Nothing Alien Tech Used ----------------- None Achievements -------------- None Challenges ------------ None Game ------ Seed AerolevNullPlating Manual? 0 Play Time 00:04:20 Cumulative 45.3 hours Start 2024.04.24 @ 13:29:50 End 2024.04.24 @ 13:32:48 Sessions 1 Manual Loads 0 Difficulty Rogue Special Mode None Game No. 122 Rogue 120 Adventurer 2 Explorer 0 Win Type - Total 0 Types 0/0/0/0/0/0/0/0/0 Lore% 35 Gallery% 49 Achievement% 34 Wizard Run 0 Options --------- Layout 2 ASCII 0 Keyboard 0 Movement Arrows Keybinds 0 Fullscreen 2 Font 24/Smallcaps Map View 50x44 Zoom Use 0% Tactical HUD 1 Map Filters NONE Filters NONE Steam 1 RUN: 8c44f669-1108-4415-80b5-fd84436d8f2f